[Event "XIII Mediterranean Championship 2023"]
[Site "Castell-Platja d Aro"]
[Date "2023.11.11"]
[Round "9.30"]
[White "Delbos, Jean-Louis"]
[Black "Vidal Traves, Marti"]
[Result "0-1"]
[ECO "D20"]
[WhiteElo "1573"]
[BlackElo "1631"]
[Annotator "NA RC"]
[PlyCount "114"]
[EventDate "2023.10.26"]
[EventType "swiss"]
[EventCountry "ESP"]
[SourceTitle "playchess.com"]
[Source "ChessBase"]
[SourceQuality "1"]
[TimeControl "5400+30"]

1. e4 {[%emt 1:31:00]} e6 {[%emt 1:31:00]} 2. d4 {[%emt 0:00:30]} d5 {[%emt 0:00:30]} 3. exd5 {[%emt 0:00:30]} exd5 {[%emt 0:00:30]} 4. c4 {[%emt 0:00:30]} dxc4 {[%emt 0:00:30]} 5. Bxc4 {[%emt 0:00:30]} Nf6 {[%emt 0:00:30]} 6. Qb3 {[%emt 0:00:30]} Qe7+ {[%emt 0:00:30]} 7. Ne2 {[%emt 0:00:30]} Qb4+ {[%emt 0:00:30]} 8. Nbc3 {[%emt 0:00:30]} Qxb3 {[%emt 0:00:30]} 9. Bxb3 {[%emt 0:00:30]} a6 {[%emt 0:00:30]} 10. Bf4 {[%emt 0:00:30]} c6 {[%emt 0:00:30]} 11. O-O {[%emt 0:00:30]} Bb4 {[%emt 0:00:30]} 12. d5 {[%emt 0:00:30]} O-O {[%emt 0:00:30]} 13. Rad1 {[%emt 0:00:30]} Bg4 {[%emt 0:00:30]} 14. f3 {[%emt 0:00:30]} Bf5 {[%emt 0:00:30]} 15. Na4 {[%emt 0:00:30]} b5 {[%emt 0:00:30]} 16. Nac3 {[%emt 0:00:30]} c5 {[%emt 0:00:30]} 17. a3 {[%emt 0:00:30]} Bxc3 {[%emt 0:00:30]} 18. Nxc3 {[%emt 0:00:30]} Nbd7 {[%emt 0:00:30]} 19. g4 {[%emt 0:00:30]} Bg6 {[%emt 0:00:30]} 20. g5 {[%emt 0:00:30]} Nh5 {[%emt 0:00:30]} 21. Bd6 {[%emt 0:00:30]} Rfe8 {[%emt 0:00:30]} 22. Rfe1 {[%emt 0:00:30]} f6 {[%emt 0:00:30]} 23. f4 {[%emt 0:00:30]} fxg5 {[%emt 0:00:30]} 24. fxg5 {[%emt 0:00:30]} Bf5 {[%emt 0:00:30]} 25. Re7 {[%emt 0:00:30]} Rxe7 {[%emt 0:00:30]} 26. Bxe7 {[%emt 0:00:30]} Re8 {[%emt 0:00:30]} 27. Re1 {[%emt 0:00:30]} g6 {[%emt 0:00:30]} 28. d6+ {[%emt 0:00:30]} c4 {[%emt 0:00:30]} 29. Bd1 {[%emt 0:00:30]} Ng7 {[%emt 0:00:30]} 30. Nd5 {[%emt 0:00:30]} Ne6 {[%emt 0:00:30]} 31. a4 {[%emt 0:00:30]} Rc8 {[%emt 0:00:30]} 32. axb5 {[%emt 0:00:30]} axb5 {[%emt 0:00:30]} 33. Bf6 {[%emt 0:00:30]} Nxf6 {[%emt 0:00:30]} 34. Ne7+ {[%emt 0:00:30]} Kf8 {[%emt 0:00:30]} 35. Nxc8 {[%emt 0:00:30]} Nxg5 {[%emt 0:00:30]} 36. Nb6 {[%emt 0:00:30]} Nf7 {[%emt 0:00:30]} 37. d7 {[%emt 0:00:30]} Nxd7 {[%emt 0:00:30]} 38. Nxd7+ {[%emt 0:00:30]} Bxd7 {[%emt 0:00:30]} 39. Bc2 {[%emt 0:00:30]} Nd6 {[%emt 0:00:30]} 40. Kf2 {[%emt 0:00:30]} Nf5 {[%emt 0:00:30]} 41. Bxf5 {[%emt 0:00:30]} Bxf5 {[%emt 0:00:30]} 42. h4 {[%emt 0:00:30]} b4 {[%emt 0:00:30]} 43. Re5 {[%emt 0:00:30]} c3 {[%emt 0:00:30]} 44. bxc3 {[%emt 0:00:30]} bxc3 {[%emt 0:00:30]} 45. Rc5 {[%emt 0:00:30]} c2 {[%emt 0:00:30]} 46. Ke3 {[%emt 0:00:30]} Kg7 {[%emt 0:00:30]} 47. Kf4 {[%emt 0:00:30]} Kf6 {[%emt 0:00:30]} 48. Rc6+ {[%emt 0:00:30]} Ke7 {[%emt 0:00:30]} 49. h5 {[%emt 0:00:30]} Kd7 {[%emt 0:00:30]} 50. Rc3 {[%emt 0:00:30]} Kd6 {[%emt 0:00:30]} 51. h6 {[%emt 0:00:30]} Kd5 {[%emt 0:00:30]} 52. Ke3 {[%emt 0:00:30]} Ke5 {[%emt 0:00:30]} 53. Rc7 {[%emt 0:00:30]} Kf6 {[%emt 0:00:30]} 54. Kf4 {[%emt 0:00:30]} g5+ {[%emt 0:00:30]} 55. Ke3 {[%emt 0:00:30]} Kg6 {[%emt 0:00:30]} 56. Rc6+ {[%emt 0:00:30]} Kh5 {[%emt 0:00:30]} 57. Kd2 {[%emt 0:00:30]} Bg6 {[%emt 0:00:30]} 0-1

[Event "XIII Mediterranean Championship 2023"]
[Site "Castell-Platja d Aro"]
[Date "2023.11.11"]
[Round "9.31"]
[White "Garcia Rodriguez, Laia"]
[Black "Leon Escoda, Manel"]
[Result "0-1"]
[ECO "B26"]
[WhiteElo "1811"]
[BlackElo "1682"]
[Annotator "NA RC"]
[PlyCount "102"]
[EventDate "2023.10.26"]
[EventType "swiss"]
[EventCountry "ESP"]
[SourceTitle "playchess.com"]
[Source "ChessBase"]
[SourceQuality "1"]
[TimeControl "5400+30"]

1. e4 {[%emt 0:00:07]} c5 {[%emt 0:00:21]} 2. Nc3 {[%emt 0:00:25]} d6 {[%emt 0:00:23]} 3. g3 {[%emt 0:00:21]} g6 {[%emt 0:00:13]} 4. Bg2 {[%emt 0:00:16]} Bg7 {[%emt 0:00:10]} 5. d3 {[%emt 0:00:29]} e5 {[%emt 0:00:34]} 6. Be3 {[%emt 0:00:33]} Ne7 {[%emt 0:00:24]} 7. Qd2 {[%emt 0:00:30]} O-O {[%emt 1:31:55]} 8. Bh6 {[%emt 0:00:38]} Nbc6 {[%emt 0:00:00]} 9. Bxg7 {[%emt 0:00:39]} Kxg7 {[%emt 0:00:00]} 10. Nge2 {[%emt 0:00:42]} Be6 {[%emt 0:00:00]} 11. O-O {[%emt 0:00:38]} Rc8 {[%emt 0:00:00]} 12. f4 {[%emt 0:03:00]} f5 {[%emt 0:00:00]} 13. Rf2 {[%emt 0:03:52]} Nd4 {[%emt 0:00:00]} 14. Raf1 {[%emt 0:04:15]} Qd7 {[%emt 0:00:00]} 15. exf5 {[%emt 0:06:21]} Bxf5 {[%emt 0:00:00]} 16. fxe5 {[%emt 0:09:13]} dxe5 {[%emt 0:00:00]} 17. Nxd4 {[%emt 0:00:58]} cxd4 {[%emt 0:00:00]} 18. Ne4 {[%emt 0:00:58]} Nd5 {[%emt 0:00:00]} 19. g4 {[%emt 0:12:58]} Bxe4 {[%emt 0:00:00]} 20. dxe4 {[%emt 0:01:57]} Ne3 {[%emt 0:00:00]} 21. Rxf8 {[%emt 0:09:33]} Rxf8 {[%emt 0:00:00]} 22. Rxf8 {[%emt 0:00:41]} Kxf8 {[%emt 0:00:00]} 23. h3 {[%emt 0:00:42]} Qb5 {[%emt 0:00:00]} 24. c3 {[%emt 0:07:39]} Qc4 {[%emt 0:00:00]} 25. a3 {[%emt 0:03:41]} Qc5 {[%emt 0:00:00]} 26. cxd4 {[%emt 0:11:51]} exd4 {[%emt 0:00:00]} 27. Kf2 {[%emt 0:04:40]} Ke7 {[%emt 0:00:00]} 28. Bf3 {[%emt 0:01:26]} Ke6 {[%emt 0:00:00]} 29. Ke2 {[%emt 0:04:18]} Ke5 {[%emt 0:00:00]} 30. b4 {[%emt 0:02:04]} Qc4+ {[%emt 0:00:00]} 31. Qd3 {[%emt 0:01:02]} Qa2+ {[%emt 0:00:00]} 32. Ke1 {[%emt 0:01:35]} Qxa3 {[%emt 0:00:00]} 33. Qxa3 {[%emt 0:01:24]} Nc2+ {[%emt 0:00:00]} 34. Kd2 {[%emt 0:00:12]} Nxa3 {[%emt 0:00:00]} 35. Kd3 {[%emt 0:00:13]} b5 {[%emt 0:00:00]} 36. Bd1 {[%emt 0:00:33]} Nc4 {[%emt 0:00:00]} 37. Bb3 {[%emt 0:00:35]} g5 {[%emt 0:00:00]} 38. Ba2 {[%emt 0:00:57]} Nb2+ {[%emt 0:00:03]} 39. Kc2 {[%emt 0:00:47]} Na4 {[%emt 0:00:23]} 40. Bd5 {[%emt 0:02:00]} Nc3 {[%emt 0:00:45]} 41. Bc6 {[%emt 0:00:22]} a6 {[%emt 0:01:53]} 42. Bb7 {[%emt 0:00:30]} Nxe4 {[%emt 0:00:22]} 43. Kd3 {[%emt 0:01:26]} Nd6 {[%emt 0:00:32]} 44. Bc6 {[%emt 0:00:20]} h6 {[%emt 0:00:45]} 45. Bd7 {[%emt 0:00:23]} Kd5 {[%emt 0:00:50]} 46. Bf5 {[%emt 0:01:05]} Nc4 {[%emt 0:01:21]} 47. Be4+ {[%emt 0:00:43]} Ke5 {[%emt 0:00:34]} 48. Bg6 {[%emt 0:00:28]} Nb2+ {[%emt 0:00:58]} 49. Kc2 {[%emt 0:00:17]} Na4 {[%emt 0:00:15]} 50. Kd3 {[%emt 0:00:36]} Nb6 {[%emt 0:00:18]} 51. Bf5 {[%emt 0:00:50]} Nd5 {[%emt 0:00:35]} 0-1